bitfinex/quotes_SOLUSD_20230112
["timestamp","ask_amount","ask_price","bid_price","bid_amount"]
[1673539610042,235.19,15.997,15.985,46.92]
[1673539610248,252.19,15.997,15.985,46.92]
[1673539610458,20.0,15.996,15.976,20.0]
[1673539610688,46.89,15.995,15.976,20.0]
[1673539611316,46.89,15.995,15.978,17.0]
[1673539611528,46.89,15.995,15.979,20.0]
[1673539612148,46.89,15.995,15.978,20.0]
[1673539612381,46.89,15.995,15.979,17.0]
[1673539612570,111.6669,15.996,15.98,20.0]
[1673539612794,111.6669,15.996,15.981,20.0]
[1673539613001,46.89,15.998,15.982,20.0]
[1673539613198,46.89,15.998,15.983,20.0]
[1673539613411,60.0,15.999,15.984,20.0]
[1673539613827,60.0,15.999,15.986,62.57]
[1673539614037,60.0,15.999,15.987,20.0]
[1673539614356,60.0,15.999,15.988,20.0]
[1673539614579,60.0,15.999,15.989,17.0]
[1673539614790,60.0,15.999,15.99,20.0]
[1673539615405,60.0,15.999,15.989,20.0]
[1673539615626,60.0,15.999,15.99,20.0]
[1673539615945,60.0,15.999,15.991,17.0]
[1673539616155,60.0,15.999,15.993,20.0]
[1673539616767,60.0,15.999,15.994,37.0]
[1673539617188,60.0,15.999,15.994,17.0]
[1673539617420,60.0,15.999,15.992,20.0]
[1673539617625,60.0,15.999,15.989,20.0]
[1673539624554,46.89,15.998,15.986,20.0]
[1673539624760,37.0,15.997,15.978,46.94]
[1673539624974,46.89,15.996,15.977,66.95]
[1673539625186,46.89,15.996,15.977,20.0]
[1673539625621,20.0,15.995,15.977,20.0]
[1673539625933,337.6306,15.997,15.977,20.0]
[1673539625934,46.9,15.994,15.977,20.0]
[1673539626148,46.89,15.996,15.978,20.0]
[1673539626863,46.89,15.996,15.979,20.0]
[1673539627068,46.89,15.996,15.981,20.0]
[1673539627495,205.3,15.995,15.982,20.0]
[1673539627705,46.9,15.994,15.982,20.0]
[1673539628238,46.89,15.996,15.982,20.0]
[1673539629603,46.89,15.996,15.983,20.0]
[1673539629818,46.89,15.996,15.984,20.0]
[1673539630439,17.0,15.995,15.984,20.0]
[1673539630649,46.9,15.994,15.984,20.0]
[1673539630861,46.89,15.996,15.984,20.0]
[1673539632038,112.3306,15.997,15.985,20.0]
[1673539635083,46.89,15.996,15.985,20.0]
[1673539635297,112.3306,15.997,15.985,20.0]
[1673539635504,46.89,15.998,15.985,20.0]
[1673539635710,106.88,15.999,15.986,20.0]
[1673539635922,46.88,15.999,15.986,20.0]
[1673539636127,46.88,15.999,15.983,20.0]
[1673539636353,17.0,15.998,15.984,20.0]
[1673539636571,20.0,15.996,15.984,20.0]
[1673539636882,46.89,15.995,15.984,20.0]
[1673539637210,63.89,15.995,15.978,20.0]
[1673539637391,20.0,15.994,15.978,20.0]
[1673539637603,46.9,15.993,15.978,20.0]
[1673539638245,116.4707,15.992,15.978,20.0]
[1673539638460,46.91,15.991,15.978,20.0]
[1673539639697,26.65,15.99,15.977,20.0]
[1673539639913,26.65,15.99,15.947,127.71194913]
[1673539639914,188.3,15.988,15.968,46.97]
[1673539640143,188.3,15.988,15.965,62.57]
[1673539640144,46.92,15.987,15.965,62.57]
[1673539640355,46.92,15.987,15.967,101.94111795]
[1673539640568,20.0,15.986,15.968,59.37111795]
[1673539640771,46.92,15.985,15.968,59.37111795]
[1673539640963,234.8204,15.984,15.968,59.37111795]
[1673539641394,234.8204,15.984,15.969,20.0]
[1673539641814,46.93,15.983,15.969,20.0]
[1673539642027,46.93,15.983,15.97,17.0]
[1673539642233,46.93,15.983,15.971,20.0]
[1673539642469,20.0,15.982,15.971,20.0]
[1673539642683,46.94,15.981,15.969,20.0]
[1673539643003,46.94,15.981,15.966,20.0]
[1673539643004,231.95,15.98,15.961,46.99]
[1673539643215,46.94,15.979,15.96,39.37111795]
[1673539643403,46.94,15.979,15.961,39.37111795]
[1673539643730,234.8204,15.984,15.961,39.37111795]
[1673539643731,46.93,15.983,15.962,46.99]
[1673539644147,46.93,15.983,15.963,39.37111795]
[1673539644351,17.0,15.982,15.964,66.99]
[1673539644687,66.94,15.981,15.965,20.0]
[1673539644880,46.94,15.981,15.966,20.0]
[1673539645211,46.93,15.983,15.967,20.0]
[1673539646448,46.93,15.983,15.968,17.0]
[1673539646664,20.0,15.982,15.969,20.0]
[1673539647088,20.0,15.982,15.966,39.37111795]
[1673539647089,214.95,15.98,15.967,20.0]
[1673539647310,46.94,15.979,15.967,20.0]
[1673539647495,46.94,15.979,15.962,79.37111795]
[1673539647709,20.0,15.978,15.962,79.37111795]
[1673539648888,20.0,15.978,15.962,59.37111795]
[1673539649308,46.95,15.977,15.962,39.37111795]
[1673539649501,20.0,15.976,15.962,39.37111795]
[1673539649712,46.95,15.975,15.962,39.37111795]
[1673539650652,46.95,15.975,15.963,20.0]
[1673539651810,46.95,15.975,15.962,39.37111795]
[1673539652137,235.25,15.975,15.955,135.35497516]
[1673539652335,235.25,15.975,15.955,174.72609311]
[1673539652336,20.0,15.974,15.955,174.72609311]
[1673539652548,46.96,15.973,15.955,174.72609311]
[1673539652985,46.96,15.973,15.956,59.37111795]
[1673539653198,46.96,15.973,15.957,20.0]
[1673539653823,46.96,15.973,15.958,17.0]
[1673539654018,46.96,15.973,15.959,20.0]
[1673539654452,46.96,15.973,15.96,17.0]
[1673539654657,46.96,15.973,15.961,20.0]
[1673539654874,46.96,15.973,15.962,17.0]
[1673539655282,46.96,15.973,15.963,20.0]
[1673539655927,46.96,15.973,15.957,20.0]
[1673539656455,46.95,15.975,15.958,20.0]
[1673539656668,46.95,15.975,15.959,20.0]
[1673539658139,46.94,15.981,15.96,46.39]
[1673539658334,157.1605,15.983,15.961,66.99]
[1673539658666,157.1605,15.983,15.961,288.91069311]
[1673539658873,20.0,15.982,15.963,20.0]
[1673539659065,20.0,15.982,15.964,46.99]
[1673539659279,20.0,15.982,15.965,20.0]
[1673539659498,20.0,15.982,15.966,20.0]
[1673539659819,46.94,15.981,15.966,20.0]
[1673539660239,46.93,15.982,15.967,20.0]
[1673539660439,157.1605,15.983,15.968,20.0]
[1673539660643,157.1605,15.983,15.97,26.55]
[1673539660644,110.2305,15.983,15.97,26.55]
[1673539660854,46.91,15.989,15.971,20.0]
[1673539661066,46.91,15.991,15.972,46.96]
[1673539661290,46.91,15.991,15.974,20.0]
[1673539661483,26.65,15.99,15.975,20.0]
[1673539661694,46.91,15.989,15.975,20.0]
[1673539663188,20.0,15.988,15.975,20.0]
[1673539663402,20.0,15.988,15.971,46.96]
[1673539663593,20.0,15.988,15.97,93.52]
[1673539663594,46.92,15.987,15.97,93.52]
[1673539664748,46.92,15.987,15.972,20.0]
[1673539664974,46.92,15.987,15.973,20.0]
[1673539665589,46.92,15.987,15.974,17.0]
[1673539665797,46.92,15.987,15.975,20.0]
[1673539666663,46.92,15.987,15.971,20.0]
[1673539667064,46.92,15.987,15.972,17.0]
[1673539667275,20.0,15.986,15.973,20.0]
[1673539667802,63.92,15.985,15.973,20.0]
[1673539668116,63.92,15.985,15.97,20.0]
[1673539668331,108.7054,15.984,15.97,20.0]
[1673539668546,46.93,15.983,15.97,20.0]
[1673539669271,46.93,15.983,15.971,20.0]
[1673539669915,108.7054,15.984,15.972,17.0]
[1673539670109,108.7054,15.984,15.973,20.0]
[1673539670763,108.7054,15.984,15.972,20.0]
[1673539673077,46.93,15.983,15.972,20.0]
[1673539673801,108.7054,15.984,15.972,20.0]
[1673539674229,46.93,15.983,15.97,20.0]
[1673539674427,20.0,15.982,15.97,20.0]
[1673539674639,20.0,15.982,15.969,20.0]
[1673539674965,20.0,15.982,15.97,17.0]
[1673539675180,46.94,15.981,15.971,20.0]
[1673539675380,46.93,15.982,15.971,20.0]
[1673539675593,46.93,15.982,15.968,20.0]
[1673539675792,46.93,15.982,15.969,17.0]
[1673539676005,46.93,15.982,15.97,20.0]
[1673539676737,17.8,15.98,15.966,82.57]
[1673539677050,20.0,15.978,15.96,20.0]
[1673539677267,46.95,15.977,15.96,20.0]
[1673539677479,252.25,15.977,15.96,20.0]
[1673539677911,113.2336,15.976,15.96,20.0]
[1673539678228,20.0,15.974,15.959,109.3491]
[1673539678432,46.96,15.973,15.959,109.3491]
[1673539678836,46.96,15.974,15.959,109.3491]
[1673539679483,20.0,15.973,15.959,109.3491]
[1673539679698,46.96,15.972,15.959,109.3491]
[1673539679892,46.96,15.972,15.96,20.0]
[1673539680109,46.96,15.974,15.958,20.0]
[1673539680830,46.95,15.975,15.958,20.0]
[1673539681900,17.0,15.974,15.958,20.0]
[1673539682110,66.96,15.973,15.958,20.0]
[1673539682442,46.96,15.973,15.958,20.0]
[1673539683377,46.96,15.973,15.959,17.0]
[1673539683702,46.96,15.973,15.96,20.0]
[1673539684097,46.96,15.973,15.958,20.0]
[1673539684526,17.62,15.97,15.955,47.01]
[1673539684721,46.97,15.969,15.956,20.0]
[1673539684942,188.3,15.968,15.956,20.0]
[1673539685269,272.28,15.967,15.956,20.0]
[1673539685476,272.28,15.967,15.948,46.79]
[1673539685689,272.28,15.967,15.946,85.84111795]
[1673539685894,17.62,15.96,15.946,39.37111795]
[1673539686107,17.62,15.96,15.947,20.0]
[1673539686839,17.62,15.96,15.946,20.0]
[1673539687057,17.62,15.96,15.946,40.0]
[1673539687485,17.62,15.96,15.946,20.0]
[1673539687915,20.0,15.958,15.944,20.0]
[1673539688225,20.0,15.958,15.943,20.0]
[1673539688441,20.0,15.958,15.942,62.61]
[1673539688625,20.0,15.958,15.942,20.0]
[1673539688831,20.0,15.958,15.94,62.37]
[1673539689066,20.0,15.958,15.941,20.0]
[1673539689382,361.8891,15.957,15.942,20.0]
[1673539689782,361.8891,15.957,15.939,110.8969]
[1673539689990,20.0,15.956,15.939,110.8969]
[1673539690211,47.01,15.955,15.939,110.8969]
[1673539690641,47.01,15.955,15.94,20.0]
[1673539691256,47.01,15.955,15.939,110.8969]
[1673539691474,20.0,15.954,15.939,110.8969]
[1673539692523,47.01,15.955,15.939,110.8969]
[1673539692953,47.01,15.955,15.94,20.0]
[1673539693155,47.01,15.955,15.941,20.0]
[1673539693798,47.01,15.956,15.941,20.0]
[1673539693999,37.0,15.955,15.941,20.0]
[1673539694208,47.01,15.954,15.94,20.0]
[1673539694417,20.0,15.953,15.94,20.0]
[1673539694622,47.02,15.952,15.94,20.0]
[1673539694841,20.0,15.951,15.94,20.0]
[1673539695793,17.8,15.95,15.937,20.0]
[1673539695982,17.8,15.95,15.936,20.0]
[1673539696418,64.03,15.949,15.932,32.82]
[1673539696745,20.0,15.948,15.931,32.01]
[1673539696926,47.04,15.947,15.93,32.01]
[1673539697369,20.0,15.946,15.93,32.01]
[1673539697581,47.04,15.945,15.928,32.1]
[1673539697787,47.04,15.945,15.93,20.0]
[1673539698001,110.6925,15.944,15.931,20.0]
[1673539698743,110.6925,15.944,15.929,20.0]
[1673539699468,20.0,15.943,15.929,20.0]
[1673539700212,110.6925,15.944,15.929,20.0]
[1673539700619,110.6925,15.944,15.93,20.0]
[1673539700830,110.6925,15.944,15.931,20.0]
[1673539704205,47.05,15.943,15.931,20.0]
[1673539704397,110.6925,15.944,15.931,20.0]
[1673539707254,110.6925,15.944,15.93,20.0]
[1673539707468,110.6925,15.944,15.931,20.0]
[1673539707863,110.6925,15.944,15.932,20.0]
[1673539708074,110.6925,15.944,15.933,20.0]
[1673539709128,110.6925,15.944,15.931,20.0]
[1673539709340,47.05,15.943,15.931,20.0]
[1673539709564,110.6925,15.944,15.932,20.0]
[1673539709773,110.6925,15.944,15.933,20.0]
[1673539711885,277.16,15.95,15.934,20.0]
[1673539711886,47.03,15.949,15.934,20.0]
[1673539712202,17.8,15.95,15.936,20.0]
[1673539712707,17.8,15.95,15.937,20.0]
[1673539713658,47.02,15.951,15.937,20.0]
[1673539713869,115.2385,15.952,15.938,20.0]
[1673539714066,115.2385,15.952,15.939,20.0]
[1673539714701,115.2385,15.952,15.94,20.0]
[1673539714916,115.2385,15.952,15.941,20.0]
[1673539715970,20.0,15.951,15.941,20.0]
[1673539716289,17.62,15.95,15.937,20.0]
[1673539716506,64.65,15.95,15.936,20.0]
[1673539716700,20.0,15.949,15.936,20.0]
[1673539717427,64.65,15.95,15.936,20.0]
[1673539717640,64.65,15.95,15.936,40.0]
[1673539717884,17.62,15.95,15.936,40.0]
[1673539718186,47.02,15.951,15.936,40.0]
[1673539718375,115.2385,15.952,15.936,40.0]
[1673539718586,115.2385,15.952,15.937,20.0]
[1673539720070,47.02,15.953,15.937,20.0]
[1673539720285,47.0,15.959,15.938,62.57]
[1673539720511,164.8579,15.959,15.94,20.0]
[1673539720812,20.0,15.958,15.941,20.0]
[1673539721003,47.01,15.957,15.941,20.0]
[1673539721208,20.0,15.956,15.941,20.0]
[1673539721426,47.01,15.955,15.941,20.0]
[1673539723855,47.01,15.957,15.941,20.0]
[1673539724063,20.0,15.956,15.941,20.0]
[1673539724265,47.01,15.955,15.941,20.0]
[1673539725308,20.0,15.954,15.941,20.0]
[1673539725520,47.02,15.953,15.938,20.0]
[1673539726790,118.8663,15.952,15.938,20.0]
[1673539726997,47.02,15.951,15.938,20.0]
[1673539727631,118.8663,15.952,15.939,20.0]
[1673539728051,47.01,15.957,15.939,20.0]
[1673539728263,47.0,15.958,15.939,20.0]
[1673539730485,47.0,15.958,15.941,20.0]
[1673539730696,47.0,15.958,15.942,20.0]
[1673539733100,188.3,15.957,15.943,20.0]
[1673539733317,277.43,15.95,15.93,20.0]
[1673539733519,188.3,15.948,15.923,115.684]
[1673539733727,47.04,15.947,15.923,115.684]
[1673539733933,47.03,15.948,15.927,32.89]
[1673539735113,47.03,15.948,15.93,20.0]
[1673539735114,17.0,15.947,15.93,20.0]
[1673539735433,20.0,15.945,15.927,20.0]
[1673539735623,47.04,15.944,15.927,20.0]
[1673539735833,47.04,15.946,15.927,20.0]
[1673539736042,20.0,15.945,15.927,20.0]
[1673539736276,47.04,15.944,15.927,20.0]
[1673539736998,47.04,15.945,15.928,20.0]
[1673539738259,235.34,15.945,15.928,20.0]
[1673539738473,20.0,15.943,15.928,20.0]
[1673539738666,47.05,15.942,15.927,20.0]
[1673539739615,17.8,15.94,15.926,20.0]
[1673539739947,47.06,15.939,15.926,20.0]
[1673539740893,47.06,15.939,15.924,20.0]
[1673539741081,17.8,15.94,15.924,20.0]
[1673539741082,17.8,15.94,15.924,67.1]
[1673539741291,17.8,15.94,15.925,20.0]
[1673539741612,17.8,15.94,15.926,20.0]
[1673539742668,17.8,15.94,15.925,20.0]
[1673539742987,64.06,15.939,15.926,20.0]
[1673539743197,64.06,15.939,15.924,20.0]
[1673539743198,188.3,15.938,15.924,20.0]
[1673539743522,64.06,15.939,15.917,47.12]
[1673539743523,20.0,15.936,15.917,47.12]
[1673539743710,64.07,15.935,15.918,20.0]
[1673539744047,252.37,15.935,15.918,20.0]
[1673539744449,20.0,15.934,15.918,20.0]
[1673539744662,47.08,15.933,15.918,20.0]
[1673539744870,47.08,15.933,15.915,67.13]
[1673539745303,17.62,15.93,15.915,47.13]
[1673539745619,17.62,15.93,15.914,110.4496]
[1673539745819,17.62,15.93,15.915,20.0]
[1673539746234,17.62,15.93,15.916,20.0]
[1673539749706,47.07,15.934,15.916,20.0]
[1673539749935,20.0,15.934,15.917,20.0]
[1673539750248,47.08,15.933,15.918,20.0]
[1673539750434,47.07,15.935,15.918,20.0]
[1673539750646,114.2742,15.936,15.919,47.12]
[1673539750856,47.07,15.935,15.921,20.0]
[1673539751305,47.07,15.935,15.922,20.0]
[1673539751926,188.3,15.934,15.922,20.0]
[1673539752117,64.08,15.933,15.918,20.0]
[1673539752328,20.0,15.932,15.918,20.0]
[1673539752539,47.08,15.933,15.918,20.0]
[1673539753605,235.37,15.934,15.917,20.0]
[1673539753819,20.0,15.932,15.917,20.0]
[1673539754014,67.08,15.932,15.916,20.0]
[1673539754975,47.08,15.932,15.917,20.0]
[1673539755947,47.07,15.934,15.917,20.0]
[1673539756455,47.07,15.935,15.917,20.0]
[1673539756665,20.0,15.934,15.917,20.0]
[1673539756895,47.08,15.933,15.917,20.0]
[1673539757624,114.2742,15.936,15.917,20.0]
[1673539757625,20.0,15.934,15.917,20.0]
[1673539757834,47.08,15.933,15.917,20.0]
[1673539758159,47.08,15.933,15.916,40.0]
[1673539758888,47.08,15.933,15.916,20.0]
[1673539759084,20.0,15.932,15.916,20.0]
[1673539759293,47.08,15.931,15.916,20.0]
[1673539759502,47.08,15.931,15.915,40.0]
[1673539760345,47.08,15.931,15.915,20.0]
[1673539760782,20.0,15.93,15.915,20.0]
[1673539760986,47.09,15.929,15.915,20.0]
[1673539761601,47.08,15.931,15.915,20.0]
[1673539762031,47.08,15.933,15.915,20.0]
[1673539762353,47.07,15.935,15.916,20.0]
[1673539762886,47.07,15.935,15.918,20.0]
[1673539763086,47.07,15.935,15.919,20.0]
[1673539763294,235.37,15.935,15.919,20.0]
[1673539763488,20.0,15.934,15.919,20.0]
[1673539763699,20.0,15.934,15.917,20.0]
[1673539763700,47.08,15.933,15.917,20.0]
[1673539765386,37.0,15.932,15.917,20.0]
[1673539765698,47.08,15.931,15.916,20.0]
[1673539766015,47.08,15.931,15.917,20.0]
[1673539766236,47.07,15.935,15.917,20.0]
[1673539766867,17.0,15.934,15.917,20.0]
[1673539767071,47.08,15.933,15.917,20.0]
[1673539767622,47.07,15.934,15.917,20.0]
[1673539768005,47.07,15.935,15.917,20.0]
[1673539770434,17.0,15.934,15.917,20.0]
[1673539770645,47.08,15.933,15.917,20.0]
[1673539772642,47.07,15.935,15.917,20.0]
[1673539773089,235.37,15.935,15.917,20.0]
[1673539773609,235.37,15.935,15.918,20.0]
[1673539773824,235.37,15.935,15.919,20.0]
[1673539774058,235.37,15.935,15.92,20.0]
[1673539774559,17.0,15.934,15.92,20.0]
[1673539774779,47.08,15.933,15.92,20.0]
[1673539776642,47.07,15.935,15.921,20.0]
[1673539776857,47.07,15.935,15.922,20.0]
[1673539777069,114.2742,15.936,15.923,67.11]
[1673539777273,114.2742,15.936,15.923,74.26073858]
[1673539777497,114.2742,15.936,15.924,27.15073858]
[1673539777714,114.2742,15.936,15.925,67.1]
[1673539778221,109.297,15.939,15.926,20.0]
[1673539779284,109.297,15.939,15.927,20.0]
[1673539779502,109.297,15.939,15.928,20.0]
[1673539780874,109.297,15.939,15.926,20.0]
[1673539784022,109.297,15.939,15.927,20.0]
[1673539784225,109.297,15.939,15.928,20.0]
[1673539786235,47.05,15.943,15.93,17.8]
[1673539786432,119.3402,15.944,15.931,20.0]
[1673539786647,119.3402,15.944,15.932,20.0]
[1673539787060,119.3402,15.944,15.934,20.0]
[1673539787374,119.3402,15.944,15.935,20.0]
[1673539788117,119.3402,15.944,15.936,17.0]
[1673539788961,159.8637,15.949,15.936,17.0]
[1673539789172,159.8637,15.949,15.938,20.0]
[1673539789382,112.8337,15.949,15.938,20.0]
[1673539789793,112.8337,15.949,15.939,20.0]
[1673539790002,47.02,15.953,15.939,20.0]
[1673539790220,47.01,15.957,15.939,20.0]
[1673539790730,20.0,15.956,15.94,17.0]
[1673539790946,20.0,15.956,15.941,20.0]
[1673539790947,47.01,15.955,15.941,20.0]
[1673539791581,235.31,15.956,15.938,20.0]
[1673539791795,235.31,15.956,15.94,20.0]
[1673539792019,235.31,15.956,15.941,20.0]
[1673539792544,47.01,15.956,15.941,20.0]
[1673539792753,47.01,15.957,15.941,20.0]
[1673539792965,47.01,15.957,15.942,20.0]
[1673539793274,46.67810052,15.957,15.943,20.0]
[1673539793595,46.67810052,15.957,15.944,20.0]
[1673539793785,46.67810052,15.957,15.946,20.0]
[1673539793992,47.0,15.958,15.946,20.0]
[1673539794207,110.1314,15.96,15.947,20.0]
[1673539796761,110.1314,15.96,15.948,20.0]
[1673539796965,110.1314,15.96,15.949,20.0]
[1673539800754,110.1314,15.96,15.951,20.0]
[1673539800968,110.1314,15.96,15.952,37.0]
[1673539801467,110.1314,15.96,15.948,14.468482]
[1673539802101,110.1314,15.96,15.949,47.03]
[1673539802313,110.1314,15.96,15.95,20.0]
[1673539803174,110.1314,15.96,15.951,20.0]
[1673539803567,110.1314,15.96,15.949,20.0]
[1673539804755,110.1314,15.96,15.947,20.0]
[1673539805248,110.1314,15.96,15.944,20.0]
[1673539805249,47.0,15.958,15.944,20.0]
[1673539805465,17.0,15.957,15.94,20.0]
[1673539805673,20.0,15.955,15.936,170.92]
[1673539805898,47.01,15.954,15.938,22.478]
[1673539806112,47.01,15.954,15.938,20.0]
[1673539806639,47.01,15.954,15.939,20.0]
[1673539807034,235.31,15.954,15.939,20.0]
[1673539807244,17.0,15.953,15.937,20.0]
[1673539807455,188.3,15.951,15.937,20.0]
[1673539807697,252.33,15.95,15.933,20.0]
[1673539807909,64.03,15.95,15.933,20.0]
[1673539808118,47.02,15.951,15.934,22.479]
[1673539808329,47.02,15.951,15.935,20.0]
[1673539810218,235.32,15.951,15.935,20.0]
[1673539810429,188.3,15.949,15.934,2.479]
[1673539810629,188.3,15.949,15.933,20.0]
[1673539810630,272.33,15.948,15.931,20.0]
[1673539810844,17.0,15.947,15.931,20.0]
[1673539811273,64.04,15.947,15.931,20.0]
[1673539811495,177.4886,15.947,15.929,112.0737]
[1673539811687,20.0,15.946,15.929,112.0737]
[1673539812012,47.04,15.945,15.929,112.0737]
[1673539812627,17.8,15.95,15.929,112.0737]
[1673539812628,17.8,15.95,15.931,20.0]
[1673539812843,118.1391,15.952,15.932,43.93]
[1673539813051,118.1391,15.952,15.933,20.0]
[1673539813267,118.1391,15.952,15.932,51.08073858]
[1673539813268,88.86,15.95,15.924,20.0]
[1673539813481,208.3,15.948,15.926,20.0]
[1673539813689,160.4886,15.947,15.926,20.0]
[1673539813891,18.75725104,15.949,15.93,88.79]
[1673539814105,47.02,15.951,15.931,43.93]
[1673539814522,118.1391,15.952,15.932,20.0]
[1673539814738,118.1391,15.952,15.933,20.0]
[1673539815599,118.1391,15.952,15.934,20.0]
[1673539816207,118.1391,15.952,15.935,20.0]
[1673539817480,118.1391,15.952,15.936,20.0]
[1673539817701,118.1391,15.952,15.937,20.0]
[1673539821262,306.4391,15.952,15.937,20.0]
[1673539821465,20.0,15.95,15.937,20.0]
[1673539821684,67.03,15.95,15.934,20.0]
[1673539822829,17.0,15.949,15.934,20.0]
[1673539823036,188.3,15.947,15.934,20.0]
[1673539823365,188.3,15.947,15.928,20.0]
[1673539823366,20.0,15.945,15.925,113.462]
[1673539823583,252.34,15.944,15.925,113.462]
[1673539823769,271.09725104,15.944,15.925,113.462]
[1673539823980,18.75725104,15.943,15.926,20.0]
[1673539824190,64.05,15.942,15.926,20.0]
[1673539824622,64.05,15.942,15.927,20.0]
[1673539824826,47.05,15.942,15.928,20.0]
[1673539825036,47.05,15.943,15.929,20.0]
[1673539825777,47.05,15.943,15.928,20.0]
[1673539827153,47.05,15.943,15.929,20.0]
[1673539828302,47.05,15.943,15.93,20.0]
[1673539828516,47.05,15.943,15.931,20.0]
[1673539830602,118.1391,15.952,15.939,20.0]
[1673539830917,17.0,15.951,15.939,20.0]
[1673539831121,118.1391,15.952,15.939,20.0]
[1673539833765,47.02,15.951,15.939,20.0]
[1673539833987,47.02,15.951,15.938,20.0]
[1673539835641,17.8,15.95,15.932,20.0]
[1673539835845,64.03,15.949,15.933,20.0]
[1673539836082,82.78725104,15.949,15.933,20.0]
[1673539836290,18.75725104,15.948,15.933,20.0]
[1673539836691,47.04,15.947,15.933,20.0]
[1673539837783,47.04,15.947,15.934,20.0]
[1673539837784,254.09725104,15.947,15.934,20.0]
[1673539837979,17.0,15.946,15.929,20.0]
[1673539838186,47.04,15.945,15.929,20.0]
[1673539838917,115.4696,15.944,15.929,20.0]
[1673539839353,115.4696,15.944,15.93,20.0]
[1673539839562,115.4696,15.944,15.931,20.0]
[1673539840183,115.4696,15.944,15.932,20.0]
[1673539840403,115.4696,15.944,15.933,20.0]
[1673539840615,115.4696,15.944,15.931,20.0]
[1673539840829,47.05,15.943,15.931,20.0]
[1673539841035,47.05,15.943,15.929,20.0]
[1673539842279,115.4696,15.944,15.93,20.0]
[1673539842506,47.02,15.951,15.931,67.08]
[1673539842720,20.0,15.956,15.932,20.0]
[1673539842920,65.76725104,15.955,15.933,47.08]
[1673539843121,188.3,15.954,15.935,20.0]